bitfinex-derivatives/quotes_SOLF0:USTF0_20220106
["timestamp","ask_amount","ask_price","bid_price","bid_amount"]
[1641462374301,9.77263702,148.61,148.6,27.1400669]
[1641462374500,9.77263702,148.61,148.6,6.69e-05]
[1641462374900,9.77263702,148.61,148.55,27.66479]
[1641462375500,8.717,148.61,148.55,27.66479]
[1641462375701,1.05563702,148.57,148.55,27.66479]
[1641462375900,8.12763702,148.57,148.55,27.66479]
[1641462376100,1.05563702,148.56,148.55,27.66479]
[1641462376703,1.05563702,148.56,148.53,27.66479]
[1641462376903,1.05563702,148.56,148.5,95.17404725]
[1641462377103,1.05563702,148.53,148.5,95.17404725]
[1641462377305,6.42763702,148.53,148.5,95.17404725]
[1641462377605,1.05563702,148.51,148.5,95.17404725]
[1641462378006,5.05563702,148.51,148.5,95.17404725]
[1641462378205,32.72042702,148.51,148.5,95.17404725]
[1641462378406,32.72042702,148.51,148.5,4.30137672]
[1641462378605,32.72042702,148.51,148.46,4.30137672]
[1641462378805,0.2933307,148.47,148.46,4.30137672]
[1641462379005,6.0693307,148.47,148.46,4.30137672]
[1641462379205,6.0693307,148.47,148.41,119.17357985]
[1641462379407,0.2933307,148.42,148.4,119.17357985]
[1641462379606,0.2933307,148.41,148.4,119.17357985]
[1641462380608,0.2933307,148.41,148.36,119.17357985]
[1641462380808,0.50061522,148.42,148.36,119.17357985]
[1641462381007,0.2933307,148.37,148.36,119.17357985]
[1641462381506,7.1193307,148.37,148.36,119.17357985]
[1641462381907,6.826,148.37,148.33,119.17357985]
[1641462382107,0.2933307,148.34,148.33,119.17357985]
[1641462382406,6.9603307,148.34,148.33,119.17357985]
[1641462382607,10.9603307,148.34,148.33,119.17357985]
[1641462383009,10.9603307,148.34,148.3,119.17357985]
[1641462383207,0.2933307,148.31,148.3,119.17357985]
[1641462383407,6.0673307,148.31,148.3,119.17357985]
[1641462383609,10.0673307,148.31,148.3,119.17357985]
[1641462383809,6.0673307,148.31,148.3,119.17357985]
[1641462384411,27.9581207,148.33,148.28,3.7066693]
[1641462384611,27.66479,148.33,148.25,27.66479]
[1641462384909,0.2933307,148.32,148.25,27.66479]
[1641462385409,27.66479,148.35,148.26,6.73468701]
[1641462385809,0.2933307,148.34,148.26,6.73468701]
[1641462386210,0.2933307,148.32,148.27,3.7066693]
[1641462386409,27.66479,148.35,148.27,3.7066693]
[1641462387011,27.66479,148.35,148.29,3.7066693]
[1641462387214,0.2933307,148.38,148.3,3.7066693]
[1641462387413,0.2933307,148.37,148.32,3.7066693]
[1641462387615,0.2933307,148.38,148.32,8.2516693]
[1641462387813,0.2933307,148.4,148.36,3.7066693]
[1641462388013,0.2933307,148.4,148.36,8.4216693]
[1641462388419,27.66479,148.43,148.36,8.4216693]
[1641462388621,0.2933307,148.42,148.36,8.4216693]
[1641462388820,27.66479,148.45,148.39,3.7066693]
[1641462389019,5.04455698,148.48,148.39,8.9406693]
[1641462389419,4.75122628,148.48,148.39,8.9406693]
[1641462389619,5.04455698,148.48,148.39,8.9406693]
[1641462389819,4.75122628,148.48,148.39,5.234]
[1641462390019,67.4644,148.51,148.4,3.7066693]
[1641462390222,4.0,148.5,148.45,38.02942352]
[1641462390421,0.2933307,148.46,148.45,38.02942352]
[1641462390822,0.2933307,148.51,148.45,38.02942352]
[1641462391020,0.2933307,148.5,148.43,10.1766693]
[1641462391222,0.2933307,148.5,148.44,3.7066693]
[1641462391424,27.66479,148.52,148.44,3.7066693]
[1641462391622,0.2933307,148.49,148.41,10.55295056]
[1641462391822,0.2933307,148.47,148.41,6.84628126]
[1641462392025,7.154,148.5,148.49,38.01972064]
[1641462392223,7.4473307,148.5,148.49,38.01972064]
[1641462392424,7.4473307,148.5,148.49,14.05972064]
[1641462392724,11.4473307,148.5,148.49,14.05972064]
[1641462392925,18.17907085,148.5,148.41,6.84628126]
[1641462393123,4.0,148.48,148.41,18.11373599]
[1641462393424,0.2933307,148.44,148.41,18.11373599]
[1641462393623,4.744,148.44,148.41,18.11373599]
[1641462393823,4.744,148.44,148.39,95.09463103]
[1641462394024,0.2933307,148.41,148.35,6.73038094]
[1641462394226,5.1143307,148.41,148.35,6.73038094]
[1641462394427,0.2933307,148.4,148.35,34.39517094]
[1641462394724,4.821,148.41,148.33,95.09463103]
[1641462395327,0.2933307,148.36,148.33,95.09463103]
[1641462395529,0.2933307,148.35,148.33,95.09463103]
[1641462396229,0.2933307,148.34,148.31,18.11373599]
[1641462397032,0.2933307,148.33,148.31,18.11373599]
[1641462397231,4.0,148.37,148.29,6.73309992]
[1641462397429,0.2933307,148.3,148.28,95.09463103]
[1641462397629,4.0,148.35,148.28,95.09463103]
[1641462397830,0.2933307,148.29,148.28,95.09463103]
[1641462398430,5.911,148.31,148.27,6.84628126]
[1641462398631,4.0,148.3,148.27,8.126e-05]
[1641462398830,4.0,148.28,148.27,8.126e-05]
[1641462399030,5.554,148.28,148.23,95.14663866]
[1641462400030,4.0,148.31,148.23,95.14663866]
[1641462400430,27.66479,148.33,148.26,3.9175949]
[1641462400630,27.66479,148.33,148.26,10.5225949]
[1641462400841,4.75122628,148.35,148.26,10.5225949]
[1641462401130,4.75122628,148.35,148.26,13.33968701]
[1641462401335,27.66479,148.39,148.26,10.5225949]
[1641462401531,4.0,148.37,148.26,10.5225949]
[1641462401730,27.66479,148.39,148.26,10.5225949]
[1641462401932,31.66479,148.39,148.3,3.9175949]
[1641462402230,27.66479,148.39,148.3,3.9175949]
[1641462402432,27.66479,148.39,148.34,3.9175949]
[1641462402631,4.75122628,148.4,148.31,31.5823849]
[1641462403031,4.0,148.41,148.31,27.66479]
[1641462403231,4.0,148.4,148.31,27.66479]
[1641462403433,4.0,148.4,148.39,4.80289223]
[1641462404435,4.0,148.4,148.39,9.223e-05]
[1641462404635,31.66479,148.4,148.39,9.223e-05]
[1641462404835,31.66479,148.4,148.31,57.08202194]
[1641462405036,4.0,148.33,148.31,57.08202194]
[1641462405237,4.0,148.32,148.31,57.08202194]
[1641462406037,4.439,148.33,148.27,57.08202194]
[1641462406237,4.0,148.34,148.27,57.08202194]
[1641462406439,4.0,148.36,148.27,57.08202194]
[1641462406638,27.66479,148.36,148.27,57.08202194]
[1641462407037,4.0,148.35,148.27,57.08202194]
[1641462407537,4.0,148.34,148.27,57.08202194]
[1641462407738,4.0,148.34,148.29,57.08202194]
[1641462408240,4.0,148.32,148.29,57.08202194]
[1641462408439,7.092,148.32,148.29,57.08202194]
[1641462408942,7.092,148.32,148.28,57.08202194]
[1641462409140,11.092,148.32,148.28,57.08202194]
[1641462409340,4.0,148.31,148.28,57.08202194]
[1641462409540,4.0,148.31,148.27,57.08202194]
[1641462410141,4.0,148.28,148.27,57.08202194]
[1641462410441,11.09,148.28,148.27,8.43162194]
[1641462410640,11.09,148.28,148.24,57.09822259]
[1641462410839,4.0,148.27,148.24,57.09822259]
[1641462412140,34.75479,148.28,148.2,95.14049092]
[1641462412342,34.75479,148.28,148.19,15.80177265]
[1641462412944,34.75479,148.28,148.18,3.9175949]
[1641462413146,38.75479,148.28,148.17,122.80528092]
[1641462413545,4.0,148.25,148.17,122.80528092]
[1641462413847,4.0,148.24,148.17,122.80528092]
[1641462414046,6.518,148.25,148.17,122.80528092]
[1641462414443,4.0,148.24,148.18,95.14049092]
[1641462414644,4.0,148.22,148.18,95.14049092]
[1641462414844,8.81,148.22,148.18,95.14049092]
[1641462415045,4.81,148.22,148.17,27.66479]
[1641462416645,4.0,148.26,148.17,27.66479]
[1641462416844,27.66479,148.25,148.17,27.66479]
[1641462417845,31.66479,148.25,148.17,27.66479]
[1641462418045,33.42079,148.25,148.17,27.66479]
[1641462418345,37.42079,148.25,148.17,27.66479]
[1641462418545,33.42079,148.25,148.17,27.66479]
[1641462418845,37.42079,148.25,148.17,27.66479]
[1641462419248,33.42079,148.25,148.18,6.81354954]
[1641462421052,4.0,148.22,148.18,6.81354954]
[1641462421449,4.0,148.21,148.2,57.11459676]
[1641462421852,4.0,148.22,148.2,57.11459676]
[1641462422050,4.0,148.22,148.18,6.81354954]
[1641462422851,33.42079,148.25,148.18,6.81354954]
[1641462423052,27.66479,148.25,148.18,6.81354954]
[1641462424152,4.755896,148.27,148.18,6.81354954]
[1641462424355,4.755896,148.27,148.2,3.9175949]
[1641462424553,71.439296,148.31,148.21,3.9175949]
[1641462424754,4.755896,148.31,148.22,10.65409663]
[1641462424952,4.755896,148.31,148.22,13.16050173]
[1641462425156,4.755896,148.31,148.23,3.9175949]
[1641462425355,4.755896,148.31,148.22,6.424]
[1641462425555,4.0,148.32,148.24,57.11459676]
[1641462425755,27.66479,148.34,148.24,57.11459676]
[1641462426357,4.0,148.32,148.24,57.11459676]
[1641462426558,4.0,148.32,148.31,14.27643488]
[1641462427558,4.0,148.33,148.31,14.27643488]
[1641462428660,4.0,148.32,148.31,14.27643488]
[1641462429060,38.40515128,148.32,148.31,3.488e-05]
[1641462429463,38.40515128,148.32,148.31,1.36535889]
[1641462430461,41.80169456,148.32,148.28,4.76061446]
[1641462430663,10.7419518,148.29,148.22,38.08491564]
[1641462430863,4.0,148.23,148.22,12.08491564]
[1641462431062,59.32958,148.23,148.18,8.17887355]
[1641462431262,55.32958,148.23,148.18,8.17887355]
[1641462431563,4.0,148.2,148.18,1.36532401]
[1641462431964,4.0,148.2,148.17,57.11459676]
[1641462432264,4.0,148.2,148.12,84.15315633]
[1641462433163,27.66479,148.18,148.12,84.15315633]
[1641462433364,4.0,148.17,148.12,84.15315633]
[1641462433764,4.0,148.17,148.11,18.04813372]
[1641462433965,4.0,148.16,148.11,18.04813372]
[1641462434165,4.0,148.17,148.11,18.04813372]
[1641462434765,32.92179,148.18,148.11,18.04813372]
[1641462434965,4.0,148.16,148.11,6.8113468]
[1641462435165,27.66479,148.14,148.07,6.8113468]
[1641462435566,27.66479,148.14,148.07,10.7289417]
[1641462435765,27.66479,148.14,148.07,6.8113468]
[1641462435965,27.66479,148.14,148.06,3.9175949]
[1641462436165,27.66479,148.14,148.04,17.88282262]
[1641462436166,27.66479,148.14,148.08,3.9175949]
[1641462437567,27.66479,148.14,148.07,3.9175949]
[1641462437867,27.66479,148.14,148.05,3.9175949]
[1641462438468,27.66479,148.14,148.04,17.88282262]
[1641462439670,4.0,148.1,148.04,17.88282262]
[1641462439871,8.477,148.1,148.04,17.88282262]
[1641462440470,4.477,148.1,148.04,17.88282262]
[1641462440671,4.477,148.1,148.04,6.8113468]
[1641462441074,27.66479,148.07,148.04,6.8113468]
[1641462441271,4.847,148.07,148.04,6.8113468]
[1641462441772,4.847,148.07,148.0,6.8113468]
[1641462441972,4.477,148.1,148.0,17.87610287]
[1641462442171,4.477,148.1,148.0,21.79369777]
[1641462442374,30.9905533,148.17,148.0,21.79369777]
[1641462442572,6.74581759,148.18,148.01,6.74581759]
[1641462442772,66.9089,148.19,148.03,3.9175949]
[1641462442972,6.74422526,148.21,148.05,10.66182016]
[1641462443173,4.0,148.15,148.07,27.66479]
[1641462443372,9.363,148.15,148.07,27.66479]
[1641462443572,9.363,148.15,148.05,27.66479]
[1641462443875,4.0,148.14,148.03,17.87610287]
[1641462444073,9.363,148.15,148.03,17.87610287]
[1641462444373,4.0,148.13,148.03,17.87610287]
[1641462444573,4.0,148.14,148.03,17.87610287]
[1641462444775,5.363,148.15,148.04,3.9175949]
[1641462444976,27.66479,148.16,148.07,3.9175949]
[1641462445575,27.66479,148.16,148.08,3.9175949]
[1641462445975,27.66479,148.16,148.1,3.9175949]
[1641462446175,27.66479,148.18,148.1,3.9175949]
[1641462446377,27.66479,148.18,148.08,3.9175949]
[1641462446974,27.66479,148.18,148.06,6.74377044]
[1641462446975,76.72797044,148.22,148.1,3.9175949]
[1641462447175,27.66479,148.21,148.1,31.5823849]
[1641462447576,27.66479,148.21,148.1,27.66479]
[1641462447775,27.66479,148.21,148.1,31.5823849]
[1641462447974,27.66479,148.21,148.1,27.66479]
[1641462448376,31.66479,148.21,148.1,27.66479]
[1641462448675,27.66479,148.21,148.11,8.15287346]
[1641462449476,27.66479,148.21,148.12,1.34152666]
[1641462449677,27.66479,148.23,148.14,3.9175949]
[1641462449977,27.66479,148.23,148.15,3.9175949]
[1641462450180,64.6159,148.27,148.15,5.25912156]
[1641462450377,64.6159,148.27,148.16,3.9175949]
[1641462450576,68.6159,148.27,148.16,3.9175949]
[1641462450779,68.6159,148.27,148.15,5.25912156]
[1641462450978,68.6159,148.27,148.15,1.34152666]
[1641462451178,27.66479,148.26,148.15,5.25912156]
[1641462451579,27.66479,148.26,148.16,1.34152666]
[1641462451979,34.4067418,148.26,148.16,1.34152666]
[1641462452380,38.4067418,148.26,148.16,1.34152666]
[1641462452580,4.0,148.24,148.16,1.34152666]
[1641462452781,34.4067418,148.26,148.16,1.34152666]
[1641462452980,4.0,148.22,148.16,1.34152666]
[1641462453181,27.66479,148.2,148.16,1.34152666]
[1641462453480,27.66479,148.2,148.15,1.34152666]
[1641462454284,27.66479,148.2,148.11,8.04615253]
[1641462456183,31.66479,148.2,148.11,8.04615253]
[1641462456384,31.66479,148.2,148.11,1.34152666]
[1641462456385,27.66479,148.2,148.11,1.34152666]
[1641462456783,4.0,148.16,148.11,1.34152666]
[1641462456985,4.0,148.15,148.11,1.34152666]
[1641462457189,55.32958,148.12,148.11,1.34152666]
[1641462457386,62.10158,148.12,148.11,1.34152666]
[1641462457586,62.10158,148.12,148.1,57.11459676]
[1641462458287,66.10158,148.12,148.1,57.11459676]
[1641462458488,62.10158,148.12,148.1,57.11459676]
[1641462458989,62.10158,148.12,148.04,57.11459676]
[1641462459388,66.10158,148.12,148.04,57.11459676]
[1641462459787,66.10158,148.12,148.05,57.11459676]
[1641462460189,62.10158,148.12,148.05,57.11459676]
[1641462461088,62.10158,148.12,148.11,14.29176661]
[1641462461089,55.32958,148.12,148.11,14.29176661]
[1641462461788,55.32958,148.12,148.07,57.11459676]
[1641462461992,13.31704513,148.17,148.07,57.11459676]
[1641462462289,6.74604513,148.17,148.07,57.11459676]
[1641462462991,10.74422526,148.21,148.07,61.03219166]
[1641462463190,4.0,148.2,148.09,57.11459676]
[1641462463390,83.31022507,148.18,148.09,57.11459676]
[1641462463889,27.66479,148.18,148.09,57.11459676]
[1641462464091,27.66479,148.18,148.17,14.287611]
[1641462464994,27.66479,148.18,148.11,3.9175949]
[1641462465193,27.66479,148.18,148.12,58.45612342]
[1641462466193,27.66479,148.2,148.12,58.45612342]
[1641462466393,6.74263367,148.25,148.12,57.11459676]
[1641462466993,169.22831259,148.3,148.12,57.11459676]
[1641462467294,73.0211,148.28,148.12,67.7730073]
[1641462467493,27.66479,148.25,148.22,14.28327339]
[1641462468098,38.40719636,148.25,148.22,14.28327339]
[1641462468296,43.03619636,148.25,148.22,14.28327339]
[1641462468499,43.03619636,148.25,148.21,14.28327339]
[1641462469498,27.66479,148.22,148.19,14.28327339]
[1641462469897,4.0,148.2,148.19,14.28327339]
[1641462470300,4.0,148.2,148.12,57.11459676]
[1641462470501,4.0,148.19,148.12,57.11459676]
[1641462470702,6.891,148.19,148.12,57.11459676]
[1641462471601,27.66479,148.22,148.12,84.77938676]
[1641462472001,27.66479,148.22,148.12,27.66479]
[1641462472401,31.66479,148.22,148.12,27.66479]
[1641462472601,4.0,148.21,148.1,46.936315]
[1641462472802,4.0,148.21,148.15,38.09356075]
[1641462473002,4.0,148.2,148.15,38.09356075]
[1641462473202,4.0,148.21,148.15,38.09356075]
[1641462473401,31.66479,148.22,148.15,38.09356075]
[1641462473601,59.32958,148.22,148.15,38.09356075]
[1641462473801,59.32958,148.22,148.14,38.09356075]
[1641462474402,55.32958,148.22,148.14,38.09356075]
[1641462474602,4.0,148.21,148.14,38.09356075]
[1641462474802,4.0,148.2,148.14,38.09356075]
[1641462475002,4.0,148.21,148.14,38.09356075]
[1641462475203,4.0,148.17,148.14,38.09356075]
[1641462475405,8.386,148.17,148.14,38.09356075]
[1641462475706,27.66479,148.15,148.14,38.09356075]
[1641462476304,27.66479,148.15,148.12,38.09356075]
[1641462477506,27.66479,148.15,148.1,19.271525]
[1641462477507,27.66479,148.15,148.11,38.09356075]
[1641462478309,31.66479,148.15,148.1,38.09356075]
[1641462478909,4.0,148.11,148.1,38.09356075]
[1641462479209,8.832,148.11,148.1,20.83146075]
[1641462479410,4.832,148.11,148.1,20.83146075]
[1641462479611,32.49679,148.11,148.1,20.83146075]
[1641462480411,32.49679,148.11,148.07,3.9175949]
[1641462480610,27.66479,148.11,148.06,19.271525]
[1641462481012,27.66479,148.15,148.06,19.271525]
[1641462481610,27.66479,148.15,148.08,84.77938676]
[1641462481811,27.66479,148.15,148.08,57.11459676]
[1641462482811,31.66479,148.15,148.08,57.11459676]
[1641462483415,38.41197305,148.15,148.07,65.16074929]
[1641462483613,4.0,148.12,148.07,65.16074929]
[1641462483813,4.0,148.11,148.07,65.16074929]
[1641462484014,4.0,148.11,148.03,76.38612176]
[1641462484514,4.0,148.1,148.03,76.38612176]
[1641462484714,4.0,148.11,148.03,76.38612176]
[1641462485514,4.0,148.08,148.03,76.38612176]
[1641462485714,6.967,148.08,148.03,76.38612176]
[1641462485916,6.967,148.08,148.02,19.271525]
[1641462486415,10.967,148.08,148.02,19.271525]
[1641462486818,4.0,148.07,148.02,19.271525]
[1641462487117,10.967,148.08,147.99,8.04615253]
[1641462488217,6.967,148.08,147.99,8.04615253]
[1641462488418,34.41470563,148.09,147.99,8.04615253]
[1641462488617,6.74991563,148.09,147.99,8.04615253]
[1641462489017,6.74991563,148.09,147.99,65.16074929]
[1641462489217,6.74991563,148.09,147.99,69.07834419]
[1641462489417,27.66479,148.11,147.99,69.07834419]
[1641462489618,27.66479,148.11,148.02,27.66479]
[1641462490718,27.66479,148.11,148.03,8.04615253]
[1641462491120,10.74946004,148.1,148.03,8.04615253]
[1641462491320,4.0,148.09,148.03,8.04615253]
[1641462491520,6.74946004,148.1,148.03,8.04615253]
[1641462491726,10.74946004,148.1,148.03,8.04615253]
[1641462493022,4.0,148.09,148.01,57.11459676]
[1641462493225,4.0,148.08,148.01,57.11459676]
[1641462493623,4.0,148.08,147.99,8.04615253]
[1641462493823,4.0,148.07,147.99,8.04615253]
[1641462494023,6.75059912,148.07,147.99,8.04615253]
[1641462494225,10.75059912,148.07,147.99,8.04615253]
[1641462494424,6.75059912,148.07,147.99,8.04615253]
[1641462494624,4.0,148.04,147.99,8.04615253]
[1641462494824,9.779,148.04,147.99,8.04615253]
[1641462495623,9.779,148.04,147.94,95.14049092]
[1641462495624,4.0,148.03,147.96,76.38612176]
[1641462495825,27.66479,148.03,147.96,76.38612176]
[1641462496529,73.23139912,148.07,147.96,76.38612176]
[1641462496829,77.99679256,148.07,147.96,57.11459676]
[1641462498033,73.23139912,148.07,147.97,57.11459676]
[1641462498733,77.99679256,148.07,147.96,57.11459676]
[1641462499532,73.23139912,148.07,147.96,58.45612342]
[1641462499734,77.23139912,148.07,148.01,38.13163051]
[1641462499934,4.0,148.06,148.01,38.13163051]
[1641462500134,4.0,148.06,148.01,12.60213051]
[1641462500335,4.0,148.05,148.01,12.60213051]
[1641462500534,4.0,148.06,147.96,58.45612342]
[1641462500734,6.75059912,148.07,148.04,4.76777011]
[1641462500735,7.41055872,148.05,148.04,4.76777011]
[1641462500935,14.16229729,148.05,148.04,4.76777011]
[1641462501639,14.16229729,148.05,148.04,7.011e-05]
[1641462502041,41.82708729,148.05,148.04,7.011e-05]
[1641462503344,46.41308729,148.05,148.01,4.57728043]
[1641462503544,46.41308729,148.05,148.0,4.57728043]
[1641462503545,4.0,148.04,148.0,4.57728043]
[1641462503944,27.66479,148.01,148.0,4.57728043]
[1641462504744,27.66479,148.01,147.93,23.1891199]
[1641462504945,34.41652857,148.05,147.93,23.1891199]
[1641462505146,34.41652857,148.05,147.93,19.271525]
[1641462505746,34.41652857,148.05,147.94,1.34152666]
[1641462506147,34.41652857,148.05,147.95,3.9175949]
[1641462506347,27.66479,148.06,147.96,3.9175949]
[1641462506647,11.78391563,148.09,147.96,3.9175949]
[1641462506847,4.0,148.05,147.94,57.11459676]
[1641462507145,7.22,148.05,147.94,57.11459676]
[1641462507746,7.22,148.05,147.95,57.11459676]
[1641462508146,27.66479,148.04,147.96,27.66479]
[1641462508346,31.66479,148.04,147.96,27.66479]
[1641462508547,27.66479,148.04,147.96,27.66479]
[1641462509048,4.0,148.03,147.96,27.66479]
[1641462509250,4.0,148.02,147.96,27.66479]
[1641462510250,4.0,148.02,147.97,8.04615253]
[1641462510649,6.7535625,148.01,147.97,8.04615253]
[1641462510849,10.7549311,147.98,147.97,5.253e-05]
[1641462511052,10.7549311,147.98,147.93,84.12300913]
[1641462511250,4.0,147.94,147.93,26.32260913]
[1641462511453,9.747,147.94,147.93,26.32260913]
[1641462511649,16.5055834,147.94,147.88,90.14049092]
[1641462511857,4.0,147.92,147.88,64.14049092]
[1641462512253,55.32958,147.89,147.88,64.14049092]
[1641462512453,61.53458,147.89,147.88,64.14049092]
[1641462512852,61.53458,147.89,147.83,0.08]
[1641462514255,65.53458,147.89,147.83,0.08]
[1641462514454,4.0,147.88,147.83,0.08]
[1641462514653,4.0,147.87,147.83,0.08]
[1641462514857,4.0,147.88,147.83,0.08]
[1641462515253,61.53458,147.89,147.83,0.08]
[1641462516055,6.75972556,147.87,147.83,0.08]
[1641462516254,27.66479,147.85,147.83,0.08]
[1641462516857,31.66479,147.85,147.83,0.08]
[1641462517158,27.66479,147.85,147.83,0.08]
[1641462517759,27.66479,147.89,147.83,0.08]
[1641462518362,62.08862022,147.89,147.83,0.08]
[1641462519362,27.66479,147.89,147.83,0.08]
[1641462519562,5.747,147.94,147.83,0.08]
[1641462520366,5.747,147.94,147.83,31.6623849]
[1641462520562,5.747,147.94,147.84,38.17595051]
[1641462521066,5.747,147.94,147.84,42.09354541]
[1641462521262,5.747,147.94,147.88,3.9175949]
[1641462521464,5.747,147.94,147.89,3.9175949]
[1641462522265,0.0001,147.94,147.9,3.9175949]
[1641462522462,0.0001,147.94,147.93,3.9175949]
[1641462522661,0.0001,147.94,147.92,3.9175949]
[1641462523063,0.0001,147.94,147.93,3.9175949]
[1641462523662,38.17595051,148.04,148.0,4.3134403]
[1641462523863,38.17595051,148.04,147.94,3.9175949]
[1641462524065,38.17595051,148.04,147.92,3.9175949]
[1641462524264,27.66479,148.03,147.95,27.66479]
[1641462524564,6.75310643,148.02,147.93,3.9175949]
[1641462524764,6.75310643,148.02,147.91,3.9175949]
[1641462524963,6.75310643,148.02,147.92,38.15801049]
[1641462525164,10.75310643,148.02,147.92,38.15801049]
[1641462525365,4.0,148.01,147.92,38.15801049]
[1641462525564,6.75310643,148.02,147.92,38.15801049]
[1641462525764,27.66479,148.03,147.92,38.15801049]
[1641462526264,27.66479,148.03,147.93,31.5823849]
[1641462526465,65.84074051,148.03,147.98,3.9175949]
[1641462526665,38.17595051,148.03,147.98,3.9175949]
[1641462527066,64.00374095,148.08,147.98,3.9175949]
[1641462527269,64.00374095,148.08,147.99,3.9175949]
[1641462527566,44.90214805,148.08,147.99,3.9175949]
[1641462528167,44.90214805,148.08,147.97,3.9175949]
[1641462528368,44.90214805,148.08,148.0,27.66479]
[1641462528667,6.75037127,148.08,148.0,27.66479]
[1641462529467,6.75037127,148.08,147.95,11.19377254]
[1641462529667,17.83737127,148.08,147.95,11.19377254]
[1641462529869,4.0,148.07,147.95,11.19377254]
[1641462530267,27.66479,148.05,147.95,11.19377254]
[1641462530468,34.72879,148.05,147.94,131.614]
[1641462530868,4.0,148.04,147.94,131.614]
[1641462531068,6.75333446,148.01,147.92,64.6121]
[1641462531273,6.75333446,148.01,147.91,27.66479]
[1641462531470,6.75333446,148.01,147.95,6.77073229]
[1641462532274,34.41812446,148.01,147.95,6.77073229]
[1641462532773,34.41812446,148.01,147.91,27.66479]
[1641462532974,27.66479,148.01,147.94,3.9175949]
[1641462533175,27.66479,148.01,147.95,3.9175949]
[1641462533575,17.4268305,148.04,147.95,3.9175949]
[1641462533873,34.41630065,148.05,147.95,3.9175949]
[1641462534073,27.66479,148.05,147.95,3.9175949]
[1641462534274,27.66479,148.05,147.96,3.9175949]
[1641462534573,34.41538912,148.07,147.97,3.9175949]
[1641462534973,34.41538912,148.07,147.96,31.5823849]
[1641462535175,12.30491173,148.04,147.97,3.9175949]
[1641462536174,12.30491173,148.06,147.97,24.99634976]
[1641462536373,12.30491173,148.06,147.97,21.07875486]
[1641462537777,12.30491173,148.06,147.97,24.99634976]
[1641462537977,12.30491173,148.06,147.97,10.68834841]
[1641462538175,12.30491173,148.06,147.97,3.9175949]
[1641462538875,12.30491173,148.06,147.98,18.22559625]
[1641462539577,12.30491173,148.06,147.98,14.30800135]
[1641462540282,12.30491173,148.06,147.98,18.22559625]
[1641462540477,12.30491173,148.06,147.99,3.9175949]
[1641462540678,12.30491173,148.06,148.0,3.9175949]
[1641462540877,12.30491173,148.06,148.01,3.9175949]
[1641462541279,12.30491173,148.06,148.02,3.9175949]
[1641462541478,17.41970213,148.09,148.03,3.9175949]
[1641462541680,12.29460907,148.09,148.07,3.9175949]
[1641462541879,12.29460907,148.09,148.07,6.406]
[1641462542083,17.41970213,148.11,148.08,3.9175949]
[1641462542279,57.25336968,148.14,148.09,3.9175949]
[1641462542679,57.25336968,148.14,148.08,31.5823849]
[1641462542883,152.67565249,148.18,148.08,27.66479]
[1641462543081,57.25336968,148.18,148.1,3.9175949]
[1641462543282,57.25336968,148.18,148.08,27.66479]
[1641462543482,57.25336968,148.18,148.11,3.9175949]
[1641462543679,57.25336968,148.18,148.09,3.9175949]
[1641462543885,6.74536256,148.19,148.08,27.66479]
[1641462544281,6.74536256,148.19,148.08,31.5823849]
[1641462544682,6.74536256,148.19,148.09,3.9175949]
[1641462544882,6.74536256,148.19,148.11,3.9175949]
[1641462545282,6.74536256,148.19,148.09,3.9175949]
[1641462545484,6.74536256,148.19,148.08,31.5823849]
[1641462546083,6.74536256,148.19,148.08,27.66479]
[1641462546284,6.74536256,148.19,148.08,31.5823849]
[1641462546785,6.74536256,148.19,148.08,27.66479]
[1641462547185,10.74536256,148.19,148.06,41.97279135]
[1641462547585,6.74536256,148.19,148.06,27.66479]
[1641462547785,38.12859938,148.16,148.06,27.66479]
[1641462549088,38.12859938,148.14,148.06,27.66479]
[1641462549288,38.12859938,148.14,148.06,31.5823849]
[1641462549486,38.12859938,148.14,148.07,3.9175949]
[1641462549690,38.12859938,148.14,148.08,3.9175949]
[1641462549888,57.25336968,148.18,148.13,3.9175949]
[1641462550089,57.25336968,148.18,148.13,8.5375949]
[1641462550288,22.36245767,148.21,148.14,3.9175949]
[1641462550491,22.36245767,148.21,148.16,27.66479]
[1641462551094,3.40586768,148.22,148.16,27.66479]
[1641462551991,3.40586768,148.23,148.16,27.66479]
[1641462553995,3.40586768,148.23,148.13,27.66479]